[Event "Late-Titled-Tuesday-Blitz-June-04-2024"]
[Site "Chess.com"]
[Date "2024.06.04"]
[Round "8"]
[White "IMRosen"]
[Black "ChessLebaneseSalah"]
[Result "1-0"]
[WhiteElo "2742"]
[BlackElo "2581"]
[TimeControl "180+1"]
[EndTime "15:26:10 PDT"]
[Termination "IMRosen won on time"]

1. d4 {[%clk 0:02:55.9]} 1... Nf6 {[%clk 0:03:00.1]} 2. Bf4 {[%clk 0:02:53.7]}
2... d6 {[%clk 0:03:00.4]} 3. Nc3 {[%clk 0:02:53.6]} 3... Nbd7 {[%clk
0:02:58.1]} 4. Nf3 {[%clk 0:02:53.3]} 4... g6 {[%clk 0:02:58]} 5. e4 {[%clk
0:02:52.8]} 5... e5 {[%clk 0:02:52.3]} 6. dxe5 {[%clk 0:02:48.6]} 6... dxe5
{[%clk 0:02:40.6]} 7. Nxe5 {[%clk 0:02:48]} 7... Bg7 {[%clk 0:02:29.7]} 8. Nxd7
{[%clk 0:02:37.9]} 8... Bxd7 {[%clk 0:02:26.7]} 9. Bd3 {[%clk 0:02:34.9]} 9...
O-O {[%clk 0:02:26.1]} 10. O-O {[%clk 0:02:33.7]} 10... Bc6 {[%clk 0:02:25.8]}
11. Re1 {[%clk 0:02:33.3]} 11... Re8 {[%clk 0:02:25.2]} 12. Bg5 {[%clk
0:02:33.2]} 12... h6 {[%clk 0:02:25]} 13. Bh4 {[%clk 0:02:31.7]} 13... g5 {[%clk
0:02:24.4]} 14. Bg3 {[%clk 0:02:31.1]} 14... Qe7 {[%clk 0:02:23.6]} 15. Qf3
{[%clk 0:02:25.3]} 15... Rad8 {[%clk 0:02:21.8]} 16. Qf5 {[%clk 0:02:21.3]}
16... Bd7 {[%clk 0:01:58.4]} 17. Qa5 {[%clk 0:02:20.6]} 17... Bc6 {[%clk
0:01:35.4]} 18. Qxa7 {[%clk 0:01:26.2]} 18... Nh5 {[%clk 0:01:34.3]} 19. Qe3
{[%clk 0:01:22]} 19... Nxg3 {[%clk 0:01:27.8]} 20. Qxg3 {[%clk 0:01:19.2]} 20...
Qb4 {[%clk 0:01:22.3]} 21. Rab1 {[%clk 0:01:05.4]} 21... Be5 {[%clk 0:01:16.1]}
22. Qg4 {[%clk 0:01:02.2]} 22... Bxc3 {[%clk 0:01:09.3]} 23. bxc3 {[%clk
0:01:00.7]} 23... Qxc3 {[%clk 0:01:10.2]} 24. h4 {[%clk 0:01:00.7]} 24... Re6
{[%clk 0:00:44.2]} 25. hxg5 {[%clk 0:00:38.2]} 25... Rg6 {[%clk 0:00:44.1]} 26.
f4 {[%clk 0:00:38.8]} 26... hxg5 {[%clk 0:00:44]} 27. f5 {[%clk 0:00:38.5]}
27... Qd4+ {[%clk 0:00:32.9]} 28. Kf1 {[%clk 0:00:31.4]} 28... Rh6 {[%clk
0:00:06.7]} 29. Qxg5+ {[%clk 0:00:25.5]} 29... Kh7 {[%clk 0:00:06.8]} 30. e5
{[%clk 0:00:18.3]} 30... Kh8 {[%clk 0:00:01.1]} 31. Qxh6+ {[%clk 0:00:16.9]}
31... Kg8 {[%clk 0:00:01.5]} 32. f6 {[%clk 0:00:15.7]} 1-0

[Event "Late-Titled-Tuesday-Blitz-June-04-2024"]
[Site "Chess.com"]
[Date "2024.06.04"]
[Round "8"]
[White "Arimin1329"]
[Black "Chaubunagungamaug1"]
[Result "1-0"]
[WhiteElo "2375"]
[BlackElo "2455"]
[TimeControl "180+1"]
[EndTime "15:26:12 PDT"]
[Termination "Arimin1329 won by resignation"]

1. Nf3 {[%clk 0:02:55.2]} 1... d5 {[%clk 0:02:58.3]} 2. g3 {[%clk 0:02:56.1]}
2... Bg4 {[%clk 0:02:55.4]} 3. Bg2 {[%clk 0:02:57]} 3... Nd7 {[%clk 0:02:52.6]}
4. O-O {[%clk 0:02:56.5]} 4... Ngf6 {[%clk 0:02:50.5]} 5. b3 {[%clk 0:02:56.9]}
5... e5 {[%clk 0:02:50.3]} 6. Bb2 {[%clk 0:02:57.4]} 6... Bd6 {[%clk 0:02:50.8]}
7. d3 {[%clk 0:02:57.6]} 7... O-O {[%clk 0:02:51]} 8. Nbd2 {[%clk 0:02:57.2]}
8... c6 {[%clk 0:02:51.5]} 9. e4 {[%clk 0:02:56.8]} 9... Re8 {[%clk 0:02:50.5]}
10. a4 {[%clk 0:02:52.6]} 10... Qc7 {[%clk 0:02:49.4]} 11. Re1 {[%clk 0:02:52]}
11... h6 {[%clk 0:02:46.5]} 12. Nf1 {[%clk 0:02:52]} 12... Nc5 {[%clk
0:02:37.4]} 13. exd5 {[%clk 0:02:47.4]} 13... cxd5 {[%clk 0:02:33.6]} 14. d4
{[%clk 0:02:46.6]} 14... Ncd7 {[%clk 0:02:17]} 15. dxe5 {[%clk 0:02:41.8]} 15...
Nxe5 {[%clk 0:02:17.5]} 16. Ne3 {[%clk 0:02:32.7]} 16... Bh5 {[%clk 0:01:57.7]}
17. Nxd5 {[%clk 0:02:25.1]} 17... Nxd5 {[%clk 0:01:28.7]} 18. Qxd5 {[%clk
0:02:26]} 18... Nxf3+ {[%clk 0:01:27.2]} 19. Bxf3 {[%clk 0:02:24.2]} 19... Bxf3
{[%clk 0:01:27.8]} 20. Qxf3 {[%clk 0:02:21.7]} 20... Qxc2 {[%clk 0:01:24.8]} 21.
Bd4 {[%clk 0:02:10.3]} 21... b6 {[%clk 0:00:54.8]} 22. Rad1 {[%clk 0:01:52.4]}
22... Bb4 {[%clk 0:00:51.4]} 23. Rxe8+ {[%clk 0:01:42.8]} 23... Rxe8 {[%clk
0:00:52.3]} 24. Qg4 {[%clk 0:01:42.9]} 24... Bf8 {[%clk 0:00:35.6]} 25. Be3
{[%clk 0:01:03.5]} 25... Qxb3 {[%clk 0:00:20.5]} 26. Rd7 {[%clk 0:00:59.7]}
26... Qe6 {[%clk 0:00:07.9]} 27. Qxe6 {[%clk 0:00:58.5]} 27... Rxe6 {[%clk
0:00:08.8]} 28. Rxa7 {[%clk 0:00:58.9]} 28... Bb4 {[%clk 0:00:08.2]} 29. Rb7
{[%clk 0:00:50.1]} 29... Ba5 {[%clk 0:00:08.4]} 30. Kg2 {[%clk 0:00:50.5]} 30...
g5 {[%clk 0:00:08.4]} 31. g4 {[%clk 0:00:50.2]} 31... Kg7 {[%clk 0:00:08.5]} 32.
Kf3 {[%clk 0:00:50.3]} 32... Kg6 {[%clk 0:00:08.8]} 33. h3 {[%clk 0:00:49]}
33... Rf6+ {[%clk 0:00:08.4]} 34. Ke4 {[%clk 0:00:48.1]} 34... Re6+ {[%clk
0:00:08.9]} 35. Kd5 {[%clk 0:00:47.8]} 35... Re8 {[%clk 0:00:06.6]} 36. Bxb6
{[%clk 0:00:45.5]} 36... Be1 {[%clk 0:00:05]} 37. Be3 {[%clk 0:00:43.7]} 37...
Re6 {[%clk 0:00:02.9]} 38. a5 {[%clk 0:00:41.8]} 38... Kg7 {[%clk 0:00:03]} 39.
Rb6 {[%clk 0:00:39.2]} 39... Re7 {[%clk 0:00:03.2]} 40. a6 {[%clk 0:00:39.3]}
40... Ra7 {[%clk 0:00:03.5]} 41. Rg6+ {[%clk 0:00:37.4]} 41... Kxg6 {[%clk
0:00:03.2]} 42. Bxa7 {[%clk 0:00:38]} 42... Ba5 {[%clk 0:00:03.4]} 43. Be3
{[%clk 0:00:37.6]} 1-0

[Event "Late-Titled-Tuesday-Blitz-June-04-2024"]
[Site "Chess.com"]
[Date "2024.06.04"]
[Round "8"]
[White "talaicito"]
[Black "Laico"]
[Result "0-1"]
[WhiteElo "2201"]
[BlackElo "2412"]
[TimeControl "180+1"]
[EndTime "15:26:12 PDT"]
[Termination "Laico won on time"]

1. d4 {[%clk 0:03:00.9]} 1... e6 {[%clk 0:02:59.8]} 2. Nc3 {[%clk 0:02:59.2]}
2... f5 {[%clk 0:02:57.8]} 3. e4 {[%clk 0:02:59]} 3... fxe4 {[%clk 0:02:58.1]}
4. Nxe4 {[%clk 0:02:58.9]} 4... Nf6 {[%clk 0:02:58.5]} 5. Nxf6+ {[%clk
0:02:54.1]} 5... Qxf6 {[%clk 0:02:57.9]} 6. Nf3 {[%clk 0:02:54.4]} 6... b6
{[%clk 0:02:56.9]} 7. Bg5 {[%clk 0:02:53.1]} 7... Qg6 {[%clk 0:02:42]} 8. Bd3
{[%clk 0:02:39.2]} 8... Qh5 {[%clk 0:02:41.6]} 9. Bf4 {[%clk 0:02:38.4]} 9...
Bd6 {[%clk 0:02:33.7]} 10. Be4 {[%clk 0:02:20.5]} 10... Bxf4 {[%clk 0:02:12.6]}
11. Bxa8 {[%clk 0:02:19.2]} 11... c6 {[%clk 0:02:13]} 12. a4 {[%clk 0:01:57.7]}
12... Na6 {[%clk 0:02:10.4]} 13. a5 {[%clk 0:01:53.5]} 13... bxa5 {[%clk
0:02:08.1]} 14. d5 {[%clk 0:01:14.3]} 14... exd5 {[%clk 0:02:05.2]} 15. Rxa5
{[%clk 0:01:04.9]} 15... Bd6 {[%clk 0:01:57.7]} 16. Qe2+ {[%clk 0:00:59.2]}
16... Kd8 {[%clk 0:01:55]} 17. O-O {[%clk 0:00:52.1]} 17... Re8 {[%clk
0:01:48.5]} 18. Qd3 {[%clk 0:00:49.1]} 18... Rf8 {[%clk 0:01:45.5]} 19. h3
{[%clk 0:00:36.7]} 19... Nc5 {[%clk 0:01:37.5]} 20. Qe3 {[%clk 0:00:26.2]} 20...
Ne4 {[%clk 0:01:09.6]} 21. Rxa7 {[%clk 0:00:24.5]} 21... Bc5 {[%clk 0:01:08.9]}
22. Nd4 {[%clk 0:00:16.1]} 22... Bxa7 {[%clk 0:00:59.9]} 23. Nxc6+ {[%clk
0:00:15.7]} 23... dxc6 {[%clk 0:01:00.8]} 24. Qxa7 {[%clk 0:00:16]} 24... Qg6
{[%clk 0:00:35.4]} 25. Qb6+ {[%clk 0:00:14.4]} 25... Ke7 {[%clk 0:00:35]} 26.
Bxc6 {[%clk 0:00:13.7]} 26... Bxh3 {[%clk 0:00:34.2]} 27. Qc7+ {[%clk
0:00:10.1]} 27... Kf6 {[%clk 0:00:30.8]} 28. Qd6+ {[%clk 0:00:07.3]} 28... Kf7
{[%clk 0:00:24.8]} 29. Bxd5+ {[%clk 0:00:06.1]} 29... Be6 {[%clk 0:00:25.4]} 30.
Qd7+ {[%clk 0:00:01.5]} 30... Kg8 {[%clk 0:00:15.9]} 31. Qxe6+ {[%clk 0:00:01]}
31... Qxe6 {[%clk 0:00:15.9]} 32. Bxe6+ {[%clk 0:00:01.4]} 32... Kh8 {[%clk
0:00:16.8]} 0-1

[Event "Late-Titled-Tuesday-Blitz-June-04-2024"]
[Site "Chess.com"]
[Date "2024.06.04"]
[Round "8"]
[White "protectiago"]
[Black "LoonsDeKoeben"]
[Result "0-1"]
[WhiteElo "2128"]
[BlackElo "2295"]
[TimeControl "180+1"]
[EndTime "15:26:14 PDT"]
[Termination "LoonsDeKoeben won on time"]

1. d4 {[%clk 0:02:59.4]} 1... Nf6 {[%clk 0:02:58.1]} 2. c4 {[%clk 0:02:59.5]}
2... e6 {[%clk 0:02:58.4]} 3. g3 {[%clk 0:02:58.9]} 3... c5 {[%clk 0:02:58]} 4.
d5 {[%clk 0:02:58.4]} 4... exd5 {[%clk 0:02:58.9]} 5. cxd5 {[%clk 0:02:58.7]}
5... d6 {[%clk 0:02:59.8]} 6. Nc3 {[%clk 0:02:58.8]} 6... g6 {[%clk 0:03:00.7]}
7. Bg2 {[%clk 0:02:58.8]} 7... Bg7 {[%clk 0:03:01.6]} 8. Nf3 {[%clk 0:02:59.3]}
8... O-O {[%clk 0:03:02.5]} 9. O-O {[%clk 0:02:59.6]} 9... Re8 {[%clk
0:02:51.6]} 10. Nd2 {[%clk 0:02:59]} 10... a6 {[%clk 0:02:50.9]} 11. a4 {[%clk
0:02:58.6]} 11... Nbd7 {[%clk 0:02:49]} 12. h3 {[%clk 0:02:57.4]} 12... Rb8
{[%clk 0:02:43.7]} 13. Nc4 {[%clk 0:02:56.9]} 13... Qc7 {[%clk 0:02:33.7]} 14.
Bf4 {[%clk 0:02:33.9]} 14... Ne5 {[%clk 0:02:19.5]} 15. Bxe5 {[%clk 0:02:23.9]}
15... dxe5 {[%clk 0:02:20.4]} 16. e4 {[%clk 0:02:23.7]} 16... b5 {[%clk
0:02:03]} 17. axb5 {[%clk 0:02:22.9]} 17... axb5 {[%clk 0:02:03.9]} 18. Na5
{[%clk 0:01:46.5]} 18... Bd7 {[%clk 0:01:32.5]} 19. Qd2 {[%clk 0:01:15.5]} 19...
Qd6 {[%clk 0:01:24.9]} 20. Rfd1 {[%clk 0:01:07.8]} 20... c4 {[%clk 0:01:08.7]}
21. Ne2 {[%clk 0:00:33.1]} 21... Qb6 {[%clk 0:00:51.9]} 22. b4 {[%clk
0:00:29.9]} 22... Bf8 {[%clk 0:00:47.4]} 23. Qb2 {[%clk 0:00:25.8]} 23... Bd6
{[%clk 0:00:46.9]} 24. Kh2 {[%clk 0:00:14.2]} 24... Rf8 {[%clk 0:00:47.2]} 25.
f4 {[%clk 0:00:13]} 25... Rbe8 {[%clk 0:00:35.1]} 26. Rf1 {[%clk 0:00:05.6]}
26... Nh5 {[%clk 0:00:34.2]} 27. Qc3 {[%clk 0:00:04.8]} 27... exf4 {[%clk
0:00:33.5]} 28. gxf4 {[%clk 0:00:05]} 28... f6 {[%clk 0:00:18.4]} 29. Ra3 {[%clk
0:00:03.8]} 29... Qc7 {[%clk 0:00:17.9]} 30. Qf3 {[%clk 0:00:01.9]} 30... Nxf4
{[%clk 0:00:16.2]} 31. Nxf4 {[%clk 0:00:01.7]} 31... g5 {[%clk 0:00:16.8]} 0-1

[Event "Late-Titled-Tuesday-Blitz-June-04-2024"]
[Site "Chess.com"]
[Date "2024.06.04"]
[Round "8"]
[White "AndresDelgado77"]
[Black "1g60-1"]
[Result "1-0"]
[WhiteElo "2365"]
[BlackElo "2441"]
[TimeControl "180+1"]
[EndTime "15:26:19 PDT"]
[Termination "AndresDelgado77 won by resignation"]

1. e4 {[%clk 0:03:00.1]} 1... e6 {[%clk 0:03:00.1]} 2. d4 {[%clk 0:02:55.3]}
2... d5 {[%clk 0:02:59.6]} 3. e5 {[%clk 0:02:38.2]} 3... c5 {[%clk 0:02:57.9]}
4. c3 {[%clk 0:02:33]} 4... Nc6 {[%clk 0:02:58]} 5. Nf3 {[%clk 0:02:20]} 5...
Bd7 {[%clk 0:02:57.3]} 6. a3 {[%clk 0:02:15.5]} 6... f6 {[%clk 0:02:57]} 7. Bb5
{[%clk 0:02:14.2]} 7... fxe5 {[%clk 0:02:42.6]} 8. Bxc6 {[%clk 0:02:13.3]} 8...
bxc6 {[%clk 0:02:42.6]} 9. Nxe5 {[%clk 0:02:14.2]} 9... Nf6 {[%clk 0:02:42.1]}
10. O-O {[%clk 0:02:03.7]} 10... cxd4 {[%clk 0:02:42]} 11. cxd4 {[%clk
0:02:03.2]} 11... Bd6 {[%clk 0:02:42.1]} 12. Bg5 {[%clk 0:01:59.9]} 12... O-O
{[%clk 0:02:41.9]} 13. Nc3 {[%clk 0:01:58.5]} 13... c5 {[%clk 0:02:37.2]} 14.
Re1 {[%clk 0:01:40.5]} 14... Qc7 {[%clk 0:02:26.3]} 15. Rc1 {[%clk 0:01:31]}
15... c4 {[%clk 0:02:20.2]} 16. Qe2 {[%clk 0:01:06.2]} 16... Rae8 {[%clk
0:02:16.5]} 17. f4 {[%clk 0:00:58.1]} 17... a6 {[%clk 0:02:13]} 18. Kh1 {[%clk
0:00:54.4]} 18... Bc8 {[%clk 0:02:12.6]} 19. Rc2 {[%clk 0:00:48.5]} 19... g6
{[%clk 0:01:55.8]} 20. Qf3 {[%clk 0:00:46.3]} 20... Nh5 {[%clk 0:01:52.7]} 21.
Bh6 {[%clk 0:00:38.8]} 21... Rf6 {[%clk 0:01:38.9]} 22. g4 {[%clk 0:00:20.7]}
22... Nxf4 {[%clk 0:01:32.4]} 23. Bxf4 {[%clk 0:00:19.1]} 23... g5 {[%clk
0:01:31.8]} 24. Nxd5 {[%clk 0:00:09.7]} 24... exd5 {[%clk 0:01:27.1]} 25. Qxd5+
{[%clk 0:00:09.6]} 25... Be6 {[%clk 0:01:22.5]} 26. Qe4 {[%clk 0:00:08.4]} 26...
Rxf4 {[%clk 0:01:15.1]} 27. Qe2 {[%clk 0:00:06.6]} 27... Bxe5 {[%clk 0:01:11.3]}
28. Qxe5 {[%clk 0:00:04.6]} 28... Bd5+ {[%clk 0:01:06.4]} 29. Qxd5+ {[%clk
0:00:04]} 29... Qf7 {[%clk 0:01:01]} 30. Rxe8+ {[%clk 0:00:03.8]} 30... Kg7
{[%clk 0:01:01.6]} 31. Qxf7+ {[%clk 0:00:03.8]} 31... Kxf7 {[%clk 0:01:02.1]}
32. Re3 {[%clk 0:00:04.3]} 32... Rxg4 {[%clk 0:01:01]} 33. Rec3 {[%clk
0:00:03.8]} 33... Rxd4 {[%clk 0:01:00.6]} 34. Rxc4 {[%clk 0:00:04.4]} 34... Rd1+
{[%clk 0:01:01]} 35. Kg2 {[%clk 0:00:04.2]} 35... Kg6 {[%clk 0:01:01.9]} 36. Rc5
{[%clk 0:00:03.9]} 36... h6 {[%clk 0:01:01.9]} 37. Ra5 {[%clk 0:00:04.2]} 37...
Rd6 {[%clk 0:01:00.9]} 38. h4 {[%clk 0:00:03.9]} 38... Rf6 {[%clk 0:00:58.6]}
39. hxg5 {[%clk 0:00:03.6]} 39... hxg5 {[%clk 0:00:59.5]} 40. Rcc5 {[%clk
0:00:04]} 40... Rf4 {[%clk 0:00:58.7]} 41. Rxg5+ {[%clk 0:00:04]} 41... Kf6
{[%clk 0:00:59.6]} 42. Rh5 {[%clk 0:00:03.9]} 42... Rg4+ {[%clk 0:00:59]} 43.
Kf3 {[%clk 0:00:02.1]} 43... Rc4 {[%clk 0:00:59.9]} 44. Rh6+ {[%clk 0:00:02.4]}
44... Kg7 {[%clk 0:01:00.3]} 45. Rb6 {[%clk 0:00:02.4]} 45... Rc1 {[%clk
0:00:59.1]} 46. Raxa6 {[%clk 0:00:02.4]} 46... Rf1+ {[%clk 0:00:59.1]} 47. Ke2
{[%clk 0:00:02.9]} 47... Rf7 {[%clk 0:01:00]} 48. Rc6 {[%clk 0:00:02.3]} 48...
Re7+ {[%clk 0:01:00.1]} 49. Kd3 {[%clk 0:00:02]} 49... Rd7+ {[%clk 0:01:00.3]}
50. Kc2 {[%clk 0:00:02.8]} 50... Rf7 {[%clk 0:00:59.4]} 51. Kb1 {[%clk
0:00:03.7]} 51... Rf1+ {[%clk 0:00:59.4]} 52. Ka2 {[%clk 0:00:04.6]} 52... Rf2
{[%clk 0:01:00]} 53. a4 {[%clk 0:00:05.5]} 53... Rf3 {[%clk 0:00:59.9]} 54. Rab6
{[%clk 0:00:06.4]} 1-0

[Event "Late-Titled-Tuesday-Blitz-June-04-2024"]
[Site "Chess.com"]
[Date "2024.06.04"]
[Round "8"]
[White "ReadySkate"]
[Black "K_A_S_T_O_R"]
[Result "1-0"]
[WhiteElo "2728"]
[BlackElo "2867"]
[TimeControl "180+1"]
[EndTime "15:26:20 PDT"]
[Termination "ReadySkate won by checkmate"]

1. d4 {[%clk 0:03:00.9]} 1... Nf6 {[%clk 0:02:58.5]} 2. c4 {[%clk 0:03:00.8]}
2... e6 {[%clk 0:02:58.7]} 3. Nc3 {[%clk 0:03:00.9]} 3... Bb4 {[%clk 0:02:58.1]}
4. f3 {[%clk 0:03:01.2]} 4... d5 {[%clk 0:02:54]} 5. a3 {[%clk 0:03:00.3]} 5...
Bxc3+ {[%clk 0:02:53.8]} 6. bxc3 {[%clk 0:03:01.1]} 6... c6 {[%clk 0:02:46.4]}
7. e4 {[%clk 0:02:59.9]} 7... dxe4 {[%clk 0:02:35.5]} 8. fxe4 {[%clk 0:03:00.8]}
8... e5 {[%clk 0:02:26.7]} 9. Nf3 {[%clk 0:02:59.5]} 9... Bg4 {[%clk 0:02:24.1]}
10. Qd3 {[%clk 0:02:55.5]} 10... Bxf3 {[%clk 0:02:22.4]} 11. Qxf3 {[%clk
0:02:48.8]} 11... Nbd7 {[%clk 0:02:22.3]} 12. Be2 {[%clk 0:02:46.9]} 12... Qa5
{[%clk 0:02:08.4]} 13. Bd2 {[%clk 0:02:44]} 13... O-O {[%clk 0:02:06.8]} 14. Qe3
{[%clk 0:02:30.7]} 14... Rfe8 {[%clk 0:01:59.5]} 15. O-O {[%clk 0:02:18.4]}
15... Rad8 {[%clk 0:01:49.5]} 16. Kh1 {[%clk 0:02:08.4]} 16... Qa4 {[%clk
0:01:40.5]} 17. d5 {[%clk 0:02:03.2]} 17... cxd5 {[%clk 0:01:31.8]} 18. exd5
{[%clk 0:02:04.1]} 18... b6 {[%clk 0:01:29.9]} 19. Rf2 {[%clk 0:01:53.5]} 19...
Qa5 {[%clk 0:01:17.9]} 20. Raf1 {[%clk 0:01:42.9]} 20... Qc5 {[%clk 0:01:17.5]}
21. Qxc5 {[%clk 0:01:14.8]} 21... Nxc5 {[%clk 0:01:16.6]} 22. Bg5 {[%clk
0:01:09.4]} 22... Nce4 {[%clk 0:01:15.2]} 23. Rf5 {[%clk 0:01:00.8]} 23... Nxg5
{[%clk 0:01:10.7]} 24. Rxg5 {[%clk 0:01:01.7]} 24... Nd7 {[%clk 0:01:06.5]} 25.
Rg3 {[%clk 0:00:54.1]} 25... Nc5 {[%clk 0:01:04.6]} 26. Re3 {[%clk 0:00:54.2]}
26... f6 {[%clk 0:01:03.8]} 27. g4 {[%clk 0:00:54.1]} 27... e4 {[%clk
0:00:58.2]} 28. Kg2 {[%clk 0:00:51]} 28... Re5 {[%clk 0:00:58.1]} 29. Kg3 {[%clk
0:00:50.7]} 29... Nb7 {[%clk 0:00:54.9]} 30. Rb1 {[%clk 0:00:48.8]} 30... Kf7
{[%clk 0:00:53.1]} 31. Rb5 {[%clk 0:00:44.1]} 31... Nd6 {[%clk 0:00:48.9]} 32.
Rb4 {[%clk 0:00:43.1]} 32... Rc8 {[%clk 0:00:49.4]} 33. a4 {[%clk 0:00:40.7]}
33... Rc5 {[%clk 0:00:48.8]} 34. Kf4 {[%clk 0:00:39.8]} 34... g6 {[%clk
0:00:45.3]} 35. Rg3 {[%clk 0:00:30.3]} 35... g5+ {[%clk 0:00:42.5]} 36. Ke3
{[%clk 0:00:29.7]} 36... f5 {[%clk 0:00:42.6]} 37. Kd4 {[%clk 0:00:29.7]} 37...
Kf6 {[%clk 0:00:42.1]} 38. Rh3 {[%clk 0:00:27.1]} 38... Nf7 {[%clk 0:00:19.9]}
39. Rxh7 {[%clk 0:00:25.7]} 39... Re7 {[%clk 0:00:18.9]} 40. gxf5 {[%clk
0:00:24.9]} 40... Kxf5 {[%clk 0:00:18.9]} 41. Bh5 {[%clk 0:00:23.7]} 41... Rcc7
{[%clk 0:00:17.1]} 42. Rb1 {[%clk 0:00:23.1]} 42... Nd6 {[%clk 0:00:15.8]} 43.
Rf1# {[%clk 0:00:22.1]} 1-0

[Event "Late-Titled-Tuesday-Blitz-June-04-2024"]
[Site "Chess.com"]
[Date "2024.06.04"]
[Round "8"]
[White "JaackCamel"]
[Black "Defenstrator"]
[Result "0-1"]
[WhiteElo "2232"]
[BlackElo "2371"]
[TimeControl "180+1"]
[EndTime "15:26:25 PDT"]
[Termination "Defenstrator won by resignation"]

1. d4 {[%clk 0:03:00.9]} 1... d5 {[%clk 0:02:58]} 2. c4 {[%clk 0:02:59.9]} 2...
Bf5 {[%clk 0:02:58.8]} 3. cxd5 {[%clk 0:02:56.7]} 3... Bxb1 {[%clk 0:02:59.3]}
4. Qa4+ {[%clk 0:02:55.7]} 4... c6 {[%clk 0:02:59.7]} 5. Rxb1 {[%clk 0:02:52.2]}
5... Qxd5 {[%clk 0:03:00.5]} 6. Nf3 {[%clk 0:02:43.4]} 6... Nd7 {[%clk
0:03:00.5]} 7. e3 {[%clk 0:02:37.9]} 7... e5 {[%clk 0:03:00.8]} 8. Bc4 {[%clk
0:02:31.9]} 8... Qd6 {[%clk 0:03:01.2]} 9. O-O {[%clk 0:02:26.3]} 9... b5 {[%clk
0:03:01.3]} 10. Bxb5 {[%clk 0:02:23.4]} 10... cxb5 {[%clk 0:03:01.8]} 11. Qxb5
{[%clk 0:02:23.1]} 11... Rb8 {[%clk 0:02:51.2]} 12. dxe5 {[%clk 0:02:19.2]}
12... Rxb5 {[%clk 0:02:48.3]} 13. exd6 {[%clk 0:02:18.8]} 13... Bxd6 {[%clk
0:02:48.8]} 14. Nd4 {[%clk 0:02:18.3]} 14... Rh5 {[%clk 0:02:46.8]} 15. h3
{[%clk 0:02:13.2]} 15... Ne7 {[%clk 0:02:43.9]} 16. Bd2 {[%clk 0:02:12]} 16...
O-O {[%clk 0:02:42.6]} 17. Rfc1 {[%clk 0:02:03.9]} 17... Ne5 {[%clk 0:02:41.1]}
18. Nb5 {[%clk 0:01:47.2]} 18... Bb8 {[%clk 0:02:37.4]} 19. Rc3 {[%clk 0:01:38]}
19... Nf3+ {[%clk 0:02:35.5]} 20. gxf3 {[%clk 0:01:37.9]} 20... Rxb5 {[%clk
0:02:35.7]} 21. b3 {[%clk 0:01:33.6]} 21... Ng6 {[%clk 0:02:32]} 22. f4 {[%clk
0:01:33.2]} 22... Bd6 {[%clk 0:02:26.6]} 23. Rbc1 {[%clk 0:01:32.2]} 23... Bb4
{[%clk 0:02:26.2]} 24. Rd3 {[%clk 0:01:32.3]} 24... Bxd2 {[%clk 0:02:25.9]} 25.
Rxd2 {[%clk 0:01:32.7]} 25... Nh4 {[%clk 0:02:26.1]} 26. Rd7 {[%clk 0:01:30.5]}
26... a5 {[%clk 0:02:16.3]} 27. Rcc7 {[%clk 0:01:29.3]} 27... g5 {[%clk
0:02:04.5]} 28. fxg5 {[%clk 0:01:24.1]} 28... Rxg5+ {[%clk 0:02:04.6]} 29. Kf1
{[%clk 0:01:20.5]} 29... Ng6 {[%clk 0:01:44.9]} 30. Ke2 {[%clk 0:01:13]} 30...
Rh5 {[%clk 0:01:43]} 31. f4 {[%clk 0:01:04.6]} 31... Rxh3 {[%clk 0:01:41.6]} 32.
f5 {[%clk 0:01:04.8]} 32... Ne5 {[%clk 0:01:41.5]} 33. Re7 {[%clk 0:01:04.7]}
33... Rh2+ {[%clk 0:01:38.7]} 34. Kf1 {[%clk 0:01:04.1]} 34... Ng4 {[%clk
0:01:29.7]} 35. Kg1 {[%clk 0:00:56.4]} 35... Rxa2 {[%clk 0:01:27.1]} 36. Re4
{[%clk 0:00:55.3]} 36... h5 {[%clk 0:01:23.3]} 37. Rc5 {[%clk 0:00:47]} 37...
Kh7 {[%clk 0:01:05.7]} 38. f6 {[%clk 0:00:45.5]} 38... Kg6 {[%clk 0:01:05.7]}
39. Rf4 {[%clk 0:00:39.2]} 39... Ra3 {[%clk 0:00:59.2]} 40. Rff5 {[%clk
0:00:39.2]} 40... Nxf6 {[%clk 0:00:47.7]} 41. Rg5+ {[%clk 0:00:31.1]} 41... Kh6
{[%clk 0:00:47.7]} 42. Rgf5 {[%clk 0:00:28.9]} 42... Rg8+ {[%clk 0:00:43]} 43.
Kf1 {[%clk 0:00:19.8]} 43... Rg6 {[%clk 0:00:43.1]} 44. e4 {[%clk 0:00:18.9]}
44... Nxe4 {[%clk 0:00:41.1]} 45. Rxh5+ {[%clk 0:00:18.4]} 45... Kg7 {[%clk
0:00:41.8]} 46. Rce5 {[%clk 0:00:18.1]} 46... Ng3+ {[%clk 0:00:41.1]} 0-1

[Event "Late-Titled-Tuesday-Blitz-June-04-2024"]
[Site "Chess.com"]
[Date "2024.06.04"]
[Round "8"]
[White "urano56"]
[Black "shirovin"]
[Result "1-0"]
[WhiteElo "2432"]
[BlackElo "2083"]
[TimeControl "180+1"]
[EndTime "15:26:27 PDT"]
[Termination "urano56 won on time"]

1. e4 {[%clk 0:03:00.9]} 1... Nf6 {[%clk 0:02:58]} 2. e5 {[%clk 0:03:00.7]} 2...
Nd5 {[%clk 0:02:58.5]} 3. d4 {[%clk 0:03:00.4]} 3... d6 {[%clk 0:02:59]} 4. c4
{[%clk 0:03:01]} 4... Nb6 {[%clk 0:02:56.2]} 5. f4 {[%clk 0:03:01.5]} 5... dxe5
{[%clk 0:02:55.6]} 6. fxe5 {[%clk 0:03:01.5]} 6... Bf5 {[%clk 0:02:55.7]} 7. Nc3
{[%clk 0:02:59.5]} 7... e6 {[%clk 0:02:55.9]} 8. Nf3 {[%clk 0:02:56.5]} 8... Bb4
{[%clk 0:02:51.7]} 9. Be3 {[%clk 0:02:25.2]} 9... c5 {[%clk 0:02:28.9]} 10. a3
{[%clk 0:02:15]} 10... Bxc3+ {[%clk 0:01:52.1]} 11. bxc3 {[%clk 0:02:14.6]}
11... O-O {[%clk 0:01:51]} 12. Be2 {[%clk 0:01:45.8]} 12... cxd4 {[%clk
0:01:45.5]} 13. cxd4 {[%clk 0:01:44.6]} 13... Nc6 {[%clk 0:01:46]} 14. O-O
{[%clk 0:01:43.8]} 14... Qd7 {[%clk 0:01:39.4]} 15. a4 {[%clk 0:01:36.4]} 15...
a5 {[%clk 0:01:29.1]} 16. Qb3 {[%clk 0:01:22.1]} 16... Nb4 {[%clk 0:01:27.5]}
17. Nh4 {[%clk 0:00:52.8]} 17... Bc2 {[%clk 0:01:20.5]} 18. Qc3 {[%clk
0:00:41.9]} 18... Nxa4 {[%clk 0:01:08.9]} 19. Qd2 {[%clk 0:00:38.2]} 19... Rfc8
{[%clk 0:00:51.9]} 20. Bh5 {[%clk 0:00:26.8]} 20... Bg6 {[%clk 0:00:49]} 21.
Nxg6 {[%clk 0:00:17.5]} 21... hxg6 {[%clk 0:00:48.5]} 22. Be2 {[%clk 0:00:17.8]}
22... Nb6 {[%clk 0:00:36.9]} 23. Rac1 {[%clk 0:00:16.4]} 23... Rd8 {[%clk
0:00:30.4]} 24. Bf3 {[%clk 0:00:11.7]} 24... Nc6 {[%clk 0:00:28.8]} 25. d5
{[%clk 0:00:06.7]} 25... exd5 {[%clk 0:00:25.1]} 26. Bxb6 {[%clk 0:00:06.4]}
26... Re8 {[%clk 0:00:19.1]} 27. Bxd5 {[%clk 0:00:06.5]} 27... Nxe5 {[%clk
0:00:17.7]} 28. Bd4 {[%clk 0:00:06.7]} 28... Re7 {[%clk 0:00:07.6]} 29. Bxe5
{[%clk 0:00:06.8]} 29... Rxe5 {[%clk 0:00:07]} 30. Rxf7 {[%clk 0:00:05.1]} 30...
Kh7 {[%clk 0:00:05.8]} 31. Rxd7 {[%clk 0:00:04.2]} 1-0